fUST/lending_fUST_20250730
["ID","MTS","AMOUNT","RATE_DAILY","PERIOD"]
[376048782,1753839791301,4133.69303622,0.0001879,2]
[376048787,1753839936570,1538.13526614,0.00026041,120]
[376048790,1753840019988,500.0,0.0001752,2]
[376048791,1753840023694,500.0,0.00018616,2]
[376048792,1753840034394,360.923736,0.00013699,2]
[376048800,1753840170514,150.0,0.00020924,30]
[376048801,1753840170907,150.0,0.00021921,30]
[376048802,1753840171349,150.0,0.00022917,30]
[376048838,1753840232132,-965.95504081,0.000188,2]
[376048842,1753840232145,-1034.04495919,0.000188,2]
[376048846,1753840232155,-2000.0,0.000188,3]
[376048849,1753840232165,-300.0,0.00018878,2]
[376048851,1753840232175,-25917.92809489,0.00018879,2]
[376048853,1753840232184,-462.90430143,0.00018879,2]
[376048855,1753840232194,-460.0,0.00018879,2]
[376048856,1753840232203,-466.04828142,0.00018879,2]
[376048857,1753840232213,-265.67868861,0.00018879,2]
[376048858,1753840232224,-314.74216866,0.00018879,2]
[376048859,1753840232234,-606.16584603,0.00018879,2]
[376048860,1753840232243,-469.09989245,0.00018879,2]
[376048861,1753840232253,-460.0,0.00018879,2]
[376048862,1753840232263,-460.0,0.00018879,2]
[376048863,1753840232272,-460.46237193,0.00018879,2]
[376048864,1753840232282,-464.7537838,0.00018879,2]
[376048865,1753840232292,-469.68980107,0.00018879,2]
[376048866,1753840232301,-460.0,0.00018879,2]
[376048867,1753840232311,-460.0,0.00018879,2]
[376048868,1753840232320,-460.0,0.00018879,2]
[376048869,1753840232330,-460.0,0.00018879,2]
[376048870,1753840232340,-199.57662258,0.00018879,2]
[376048871,1753840232353,-1294.82,0.00018879,2]
[376048872,1753840232363,-461.81894615,0.00018879,2]
[376048873,1753840232373,-462.71626595,0.00018879,2]
[376048874,1753840232384,-338.026412,0.00018879,2]
[376048875,1753840232394,-460.0,0.0001888,2]
[376048876,1753840232404,-1534.99,0.0001888,2]
[376048877,1753840232414,-737.07,0.0001888,2]
[376048878,1753840232423,-465.40026359,0.0001888,2]
[376048879,1753840232433,-471.30919887,0.0001888,2]
[376048880,1753840232443,-460.0,0.0001888,2]
[376048881,1753840232453,-460.0,0.0001888,2]
[376048883,1753840232463,-463.22739435,0.0001888,2]
[376048885,1753840232472,-460.0,0.0001888,2]
[376048887,1753840232482,-466.2990322,0.0001888,2]
[376048889,1753840232492,-308.73596294,0.0001888,2]
[376048891,1753840232502,-461.69270938,0.0001888,2]
[376048893,1753840232511,-469.92680314,0.0001888,2]
[376048894,1753840232520,-460.0,0.0001888,2]
[376048895,1753840232529,-480.72544746,0.0001888,2]
[376048896,1753840232538,-460.0,0.0001888,2]
[376048898,1753840232548,-460.0,0.0001888,2]
[376048900,1753840232557,-678.08,0.0001888,2]
[376048902,1753840232567,-476.93433418,0.0001888,2]
[376048904,1753840232576,-460.0,0.0001888,2]
[376048906,1753840232586,-460.0,0.0001888,2]
[376048908,1753840232595,-465.60071309,0.0001888,2]
[376048910,1753840232608,-469.97691224,0.0001888,2]
[376048912,1753840232617,-475.2284591,0.0001888,2]
[376048914,1753840232627,-1013.8,0.0001888,2]
[376048916,1753840232637,-461.92717174,0.0001888,2]
[376048918,1753840232647,-466.47780731,0.0001888,2]
[376048920,1753840232656,-467.18417194,0.0001888,2]
[376048922,1753840232666,-589.42407465,0.0001888,2]
[376048924,1753840232675,-465.20275503,0.0001888,2]
[376048927,1753840232686,-477.08234326,0.0001888,2]
[376048929,1753840232696,-460.0,0.0001888,2]
[376048931,1753840232705,-517.4991079,0.0001888,2]
[376048933,1753840232715,-473.34287861,0.0001888,2]
[376048935,1753840232724,-464.23438453,0.0001888,2]
[376048937,1753840232733,-460.0,0.0001888,2]
[376048939,1753840232743,-469.7815409,0.0001888,2]
[376048941,1753840232752,-465.4122643,0.0001888,2]
[376048943,1753840232762,-460.0,0.0001888,2]
[376048945,1753840232771,-460.0,0.0001888,2]
[376048947,1753840232781,-463.11115021,0.0001888,2]
[376048949,1753840232790,-589.91371468,0.0001888,2]
[376048951,1753840232799,-464.13207167,0.0001888,2]
[376048953,1753840232808,-477.45134464,0.0001888,2]
[376048955,1753840232818,-466.28,0.0001888,2]
[376048957,1753840232827,-461.62236589,0.0001888,2]
[376048959,1753840232836,-461.59607936,0.0001888,2]
[376048961,1753840232845,-469.28769235,0.0001888,2]
[376048981,1753840233027,-202.70959394,0.0001888,2]
[376048982,1753840233040,-465.885054,0.0001888,2]
[376048984,1753840233051,-465.38936678,0.0001888,2]
[376048986,1753840233061,-779.48,0.0001888,2]
[376048988,1753840233071,-473.49749476,0.0001888,2]
[376048990,1753840233081,-460.0,0.0001888,2]
[376048992,1753840233091,-465.34139798,0.0001888,2]
[376048995,1753840233103,-469.68429459,0.0001888,2]
[376048996,1753840233113,-460.0,0.0001888,2]
[376048999,1753840233123,-572.33247563,0.0001888,2]
[376049000,1753840233132,-467.46732705,0.0001888,2]
[376049002,1753840233142,-460.0,0.0001888,2]
[376049004,1753840233152,-460.0,0.0001888,2]
[376049006,1753840233162,-1980.43,0.0001888,2]
[376049008,1753840233172,-461.13478759,0.0001888,2]
[376049010,1753840233182,-466.0899384,0.0001888,2]
[376049012,1753840233192,-460.0,0.0001888,2]
[376049014,1753840233202,-464.50487135,0.0001888,2]
[376049016,1753840233212,-472.56764066,0.0001888,2]
[376049018,1753840233221,-460.0,0.0001888,2]
[376049020,1753840233231,-460.0,0.0001888,2]
[376049022,1753840233241,-460.0,0.0001888,2]
[376049026,1753840233262,-467.81052889,0.0001888,2]
[376049028,1753840233273,-460.0,0.0001888,2]
[376049030,1753840233284,-465.77064718,0.0001888,2]
[376049032,1753840233294,-460.0,0.0001888,2]
[376049034,1753840233304,-1629.06,0.0001888,2]
[376049036,1753840233314,-460.0,0.0001888,2]
[376049038,1753840233325,-467.15517298,0.0001888,2]
[376049040,1753840233335,-460.0,0.0001888,2]
[376049042,1753840233346,-566.85596669,0.0001888,2]
[376049044,1753840233356,-460.0,0.0001888,2]
[376049046,1753840233367,-460.0,0.0001888,2]
[376049048,1753840233378,-460.0,0.0001888,2]
[376049050,1753840233388,-920.55,0.0001888,2]
[376049052,1753840233398,-460.0,0.0001888,2]
[376049054,1753840233407,-460.0,0.0001888,2]
[376049055,1753840233417,-460.0,0.0001888,2]
[376049058,1753840233427,-462.06512731,0.0001888,2]
[376049060,1753840233437,-462.25538995,0.0001888,2]
[376049061,1753840233447,-543.71543959,0.0001888,2]
[376049064,1753840233458,-469.58060941,0.0001888,2]
[376049066,1753840233468,-461.05310666,0.0001888,2]
[376049068,1753840233478,-463.70597732,0.0001888,2]
[376049070,1753840233489,-463.98058374,0.0001888,2]
[376049071,1753840233499,-460.0,0.0001888,2]
[376049074,1753840233509,-460.0,0.0001888,2]
[376049076,1753840233519,-460.0,0.0001888,2]
[376049078,1753840233529,-468.48737926,0.0001888,2]
[376049079,1753840233539,-460.0,0.0001888,2]
[376049081,1753840233549,-460.0,0.0001888,2]
[376049083,1753840233559,-460.0,0.0001888,2]
[376049085,1753840233570,-462.36029543,0.0001888,2]
[376049087,1753840233579,-460.0,0.0001888,2]
[376049089,1753840233589,-460.49,0.0001888,2]
[376049091,1753840233600,-462.19055063,0.0001888,2]
[376049093,1753840233610,-465.16657325,0.0001888,2]
[376049095,1753840233620,-460.0,0.0001888,2]
[376049097,1753840233630,-461.82164261,0.00018881,2]
[376049099,1753840233640,-470.06972144,0.00018881,2]
[376049101,1753840233650,-4231.04,0.00018881,2]
[376049103,1753840233660,-465.36848844,0.00018881,2]
[376049105,1753840233670,-830.42,0.00018881,2]
[376049107,1753840233679,-460.0,0.00018881,2]
[376049109,1753840233690,-510.22552918,0.00018881,2]
[376049111,1753840233699,-460.0,0.00018882,2]
[376049113,1753840233709,-1935.82,0.00018882,2]
[376049115,1753840233719,-460.0,0.00018882,2]
[376049116,1753840233729,-400.51253924,0.00019153,2]
[376049117,1753840233739,-462.2907801,0.00019153,2]
[376049118,1753840233749,-466.03016919,0.00019153,2]
[376049119,1753840233759,-196.65936088,0.00019153,2]
[376049120,1753840233770,-468.36151971,0.00019153,2]
[376049121,1753840233780,-460.0,0.00019153,2]
[376049122,1753840233790,-460.0,0.00019153,2]
[376049123,1753840233800,-470.69732823,0.00019153,2]
[376049124,1753840233810,-465.51353007,0.00019153,2]
[376049125,1753840233819,-465.9415821,0.00019153,2]
[376049126,1753840233830,-460.0,0.00019153,2]
[376049127,1753840233840,-468.52844558,0.00019153,2]
[376049128,1753840233851,-460.0,0.00019153,2]
[376049129,1753840233862,-460.0,0.00019153,2]
[376049130,1753840233872,-460.0,0.00019153,2]
[376049131,1753840233883,-647.4,0.00019153,2]
[376049132,1753840233894,-470.85265633,0.00019153,2]
[376049133,1753840233908,-460.0,0.00019153,2]
[376049134,1753840233918,-460.0,0.00019153,2]
[376049135,1753840233928,-460.0,0.00019153,2]
[376049136,1753840233938,-460.0,0.00019153,2]
[376049137,1753840233949,-467.65380363,0.00019153,2]
[376049138,1753840233959,-469.18138618,0.00019153,2]
[376049139,1753840233969,-469.30838508,0.00019153,2]
[376049140,1753840233980,-466.0683641,0.00019153,2]
[376049141,1753840233990,-460.0,0.00019153,2]
[376049142,1753840234000,-460.0,0.00019153,2]
[376049143,1753840234010,-460.0,0.00019153,2]
[376049144,1753840234021,-460.0,0.00019153,2]
[376049145,1753840234031,-460.0,0.00019153,2]
[376049146,1753840234041,-460.0,0.00019153,2]
[376049147,1753840234050,-464.72221821,0.00019153,2]
[376049148,1753840234060,-471.92659909,0.00019153,2]
[376049149,1753840234070,-460.77485515,0.00019153,2]
[376049150,1753840234080,-1294.82,0.00019153,2]
[376049151,1753840234090,-460.0,0.00019153,2]
[376049152,1753840234101,-460.0,0.00019153,2]
[376049153,1753840234112,-460.0,0.00019153,2]
[376049154,1753840234122,-460.0,0.00019153,2]
[376049155,1753840234131,-480.17479267,0.00019153,2]
[376049156,1753840234141,-461.03979126,0.00019153,2]
[376049157,1753840234151,-460.0,0.00019153,2]
[376049158,1753840234160,-460.0,0.00019153,2]
[376049159,1753840234171,-460.0,0.00019153,2]
[376049160,1753840234181,-472.96214516,0.00019154,2]
[376049161,1753840234191,-1534.99,0.00019154,2]
[376049162,1753840234201,-737.07,0.00019154,2]
[376049163,1753840234211,-460.0,0.00019154,2]
[376049164,1753840234222,-460.0,0.00019154,2]
[376049165,1753840234233,-476.29407902,0.00019154,2]
[376049166,1753840234242,-460.0,0.00019154,2]
[376049167,1753840234253,-476.58823222,0.00019154,2]
[376049168,1753840234263,-460.0,0.00019154,2]
[376049169,1753840234273,-678.08,0.00019154,2]
[376049170,1753840234283,-460.0,0.00019154,2]
[376049171,1753840234293,-460.0,0.00019154,2]
[376049172,1753840234303,-1013.8,0.00019154,2]
[376049173,1753840234313,-468.477385,0.00019154,2]
[376049174,1753840234323,-466.65384779,0.00019154,2]
[376049175,1753840234334,-460.0,0.00019154,2]
[376049176,1753840234345,-460.0,0.00019154,2]
[376049177,1753840234355,-466.28,0.00019154,2]
[376049178,1753840234366,-779.48,0.00019154,2]
[376049179,1753840234376,-471.41161327,0.00019154,2]
[376049180,1753840234387,-460.0,0.00019154,2]
[376049181,1753840234398,-472.47873469,0.00019154,2]
[376049182,1753840234407,-460.0,0.00019154,2]
[376049183,1753840234416,-1980.43,0.00019154,2]
[376049184,1753840234426,-346.07940119,0.00019154,2]
[376049185,1753840234436,-460.0,0.00019154,2]
[376049186,1753840234445,-460.0,0.00019154,2]
[376049187,1753840234455,-460.0,0.00019154,2]
[376049188,1753840234464,-484.35,0.00019154,2]
[376049189,1753840234473,-460.0,0.00019154,2]
[376049190,1753840234483,-460.0,0.00019154,2]
[376049191,1753840234493,-471.0302583,0.00019154,2]
[376049192,1753840234502,-1629.06,0.00019154,2]
[376049193,1753840234512,-460.0,0.00019154,2]
[376049194,1753840234521,-460.0,0.00019154,2]
[376049195,1753840234531,-210.34730726,0.00019154,2]
[376049196,1753840234540,-460.0,0.00019154,2]
[376049197,1753840234551,-460.0,0.00019154,2]
[376049198,1753840234560,-467.438705,0.00019154,2]
[376049199,1753840234570,-920.55,0.00019154,2]
[376049200,1753840234579,-460.0,0.00019154,2]
[376049201,1753840234589,-465.75460884,0.00019154,2]
[376049202,1753840234600,-460.0,0.00019154,2]
[376049203,1753840234609,-460.0,0.00019154,2]
[376049204,1753840234618,-471.42550814,0.00019154,2]
[376049205,1753840234627,-460.0,0.00019154,2]
[376049206,1753840234636,-460.0,0.00019154,2]
[376049207,1753840234646,-219.64510793,0.00019154,2]
[376049208,1753840234655,-465.85698912,0.00019154,2]
[376049209,1753840234665,-468.3364952,0.00019154,2]
[376049210,1753840234674,-460.0,0.00019154,2]
[376049211,1753840234684,-461.83927395,0.00019154,2]
[376049212,1753840234693,-460.0,0.00019154,2]
[376049213,1753840234703,-460.49,0.00019154,2]
[376049214,1753840234712,-4231.04,0.00019155,2]
[376049215,1753840234721,-830.42,0.00019155,2]
[376049216,1753840234731,-375.91456328,0.00019155,2]
[376049217,1753840238141,-468.27182095,0.00018879,2]
[376049218,1753840238152,-464.98483122,0.0001888,2]
[376049219,1753840238161,-471.71209296,0.00019154,2]
[376049221,1753840238171,-84.08543672,0.00019155,2]
[376049223,1753840238180,-460.0,0.00019156,2]
[376049224,1753840238190,-1935.82,0.00019156,2]
[376049226,1753840238200,-460.0,0.00019156,2]
[376049228,1753840238209,-666.0,0.00019178,2]
[376049230,1753840238218,-5000.0,0.00019178,2]
[376049231,1753840238229,-276.207743,0.00019178,2]
[376049233,1753840238239,-504.8007036,0.00019178,2]
[376049235,1753840238249,-200.0,0.00019257,15]
[376049237,1753840238259,-200.0,0.00019257,15]
[376049238,1753840238268,-200.0,0.00019257,15]
[376049240,1753840238278,-200.0,0.00019257,15]
[376049242,1753840238287,-1675.71057021,0.00019329,2]
[376049244,1753840238297,-585.6110288,0.00019347,2]
[376049245,1753840238307,-791.44,0.00019419,3]
[376049247,1753840238316,-465.29923072,0.00019427,2]
[376049249,1753840238326,-460.0,0.00019427,2]
[376049251,1753840238335,-460.0,0.00019427,2]
[376049253,1753840238345,-460.0,0.00019427,2]
[376049255,1753840238354,-460.0,0.00019427,2]
[376049256,1753840238364,-460.0,0.00019427,2]
[376049258,1753840238373,-647.4,0.00019427,2]
[376049260,1753840238382,-473.38270933,0.00019427,2]
[376049262,1753840238391,-460.0,0.00019427,2]
[376049264,1753840238401,-460.0,0.00019427,2]
[376049266,1753840238411,-460.0,0.00019427,2]
[376049268,1753840238421,-460.0,0.00019427,2]
[376049269,1753840238431,-460.0,0.00019427,2]
[376049271,1753840238440,-460.0,0.00019427,2]
[376049273,1753840238450,-460.0,0.00019427,2]
[376049275,1753840238460,-460.0,0.00019427,2]
[376049277,1753840238468,-53.27383249,0.00019427,2]
[376049279,1753840238481,-406.72616751,0.00019427,2]
[376049281,1753840238491,-1294.82,0.00019427,2]
[376049282,1753840238500,-460.0,0.00019427,2]
[376049284,1753840238513,-460.0,0.00019427,2]
[376049285,1753840238524,-581.20365635,0.00019427,2]
[376049287,1753840238534,-471.09756314,0.00019427,2]
[376049289,1753840238543,-460.0,0.00019427,2]
[376049291,1753840238552,-460.0,0.00019427,2]
[376049293,1753840238561,-460.0,0.00019427,2]
[376049295,1753840238570,-1201.75191335,0.00019428,2]
[376049297,1753840238586,-333.23808665,0.00019428,2]
[376049299,1753840238595,-737.07,0.00019428,2]
[376049301,1753840238605,-460.0,0.00019428,2]
[376049302,1753840238614,-483.32659927,0.00019428,2]
[376049304,1753840238624,-472.51900108,0.00019428,2]
[376049306,1753840238633,-181.48710471,0.00019428,2]
[376049308,1753840238643,-678.08,0.00019428,2]
[376049310,1753840238652,-460.0,0.00019428,2]
[376049312,1753840238661,-558.1826945,0.00019428,2]
[376049314,1753840238680,-1013.8,0.00019428,2]
[376049316,1753840238689,-460.0,0.00019428,2]
[376049317,1753840238698,-460.0,0.00019428,2]
[376049319,1753840238708,-466.28,0.00019428,2]
[376049321,1753840238717,-779.48,0.00019428,2]
[376049323,1753840238727,-460.0,0.00019428,2]
[376049325,1753840238736,-186.33850569,0.00019428,2]
[376049327,1753840238746,-1980.43,0.00019428,2]
[376049329,1753840238755,-460.0,0.00019428,2]
[376049330,1753840238764,-460.0,0.00019428,2]
[376049332,1753840238774,-460.0,0.00019428,2]
[376049334,1753840238785,-484.35,0.00019428,2]
[376049336,1753840238795,-460.0,0.00019428,2]
[376049338,1753840238805,-467.1953133,0.00019428,2]
[376049340,1753840238817,-1629.06,0.00019428,2]
[376049342,1753840238827,-460.0,0.00019428,2]
[376049344,1753840238835,-460.0,0.00019428,2]
[376049345,1753840238844,-460.0,0.00019428,2]
[376049347,1753840238856,-460.0,0.00019428,2]
[376049349,1753840238867,-920.55,0.00019428,2]
[376049351,1753840238876,-460.0,0.00019428,2]
[376049353,1753840238886,-460.0,0.00019428,2]
[376049354,1753840238896,-197.06180361,0.00019428,2]
[376049356,1753840238911,-460.0,0.00019428,2]
[376049358,1753840238922,-460.0,0.00019428,2]
[376049360,1753840238932,-460.0,0.00019428,2]
[376049362,1753840238943,-460.0,0.00019428,2]
[376049364,1753840238952,-460.49,0.00019428,2]
[376049365,1753840238962,-4231.04,0.00019429,2]
[376049367,1753840238971,-830.42,0.00019429,2]
[376049369,1753840238983,-469.05307916,0.00019429,2]
[376049371,1753840238993,-460.0,0.0001943,2]
[376049373,1753840239003,-1935.82,0.0001943,2]
[376049375,1753840239012,-460.0,0.0001943,2]
[376049376,1753840239021,-527.61,0.00019638,3]
[376049378,1753840239032,-263.81,0.00019638,3]
[376049380,1753840239041,-501.90167693,0.00019648,2]
[376049382,1753840239050,-500.0,0.00019648,2]
[376049383,1753840239059,-500.0,0.00019648,2]
[376049385,1753840239068,-1055.23,0.00019692,3]
[376049387,1753840239078,-467.43581217,0.000197,2]
[376049388,1753840239087,-460.0,0.000197,2]
[376049389,1753840239097,-1939.76,0.000197,2]
[376049390,1753840239112,-1120.65,0.000197,2]
[376049391,1753840239121,-460.0,0.000197,2]
[376049392,1753840239133,-818.13,0.000197,2]
[376049393,1753840239142,-470.74291628,0.00019701,2]
[376049394,1753840239152,-460.0,0.00019701,2]
[376049395,1753840239162,-460.0,0.00019701,2]
[376049396,1753840239171,-460.0,0.00019701,2]
[376049397,1753840239180,-460.0,0.00019701,2]
[376049398,1753840239190,-647.4,0.00019701,2]
[376049399,1753840239200,-460.0,0.00019701,2]
[376049400,1753840239209,-472.50918261,0.00019701,2]
[376049401,1753840239220,-507.51429428,0.00019701,2]
[376049402,1753840239231,-460.0,0.00019701,2]
[376049403,1753840239242,-460.0,0.00019701,2]
[376049404,1753840239256,-460.0,0.00019701,2]
[376049405,1753840239275,-460.0,0.00019701,2]
[376049406,1753840239285,-460.0,0.00019701,2]
[376049407,1753840239294,-460.0,0.00019701,2]
[376049408,1753840239305,-1294.82,0.00019701,2]
[376049409,1753840239314,-460.0,0.00019701,2]
[376049411,1753840239464,-460.0,0.00019701,2]
[376049412,1753840239474,-460.0,0.00019701,2]
[376049413,1753840239484,-460.0,0.00019701,2]
[376049414,1753840239494,-460.0,0.00019701,2]
[376049415,1753840239503,-1534.99,0.00019702,2]
[376049416,1753840239512,-737.07,0.00019702,2]
[376049418,1753840239522,-460.0,0.00019702,2]
[376049419,1753840239532,-678.08,0.00019702,2]
[376049420,1753840239541,-460.0,0.00019702,2]
[376049421,1753840239551,-1013.8,0.00019702,2]
[376049422,1753840239560,-467.89524988,0.00019702,2]
[376049423,1753840239569,-460.0,0.00019702,2]
[376049424,1753840239579,-466.28,0.00019702,2]
[376049425,1753840239588,-779.48,0.00019702,2]
[376049426,1753840239598,-328.82976841,0.00019702,2]
[376049427,1753840239611,-1980.43,0.00019702,2]
[376049428,1753840239621,-460.0,0.00019702,2]
[376049429,1753840239631,-460.0,0.00019702,2]
[376049430,1753840239640,-460.0,0.00019702,2]
[376049431,1753840239649,-484.35,0.00019702,2]
[376049432,1753840239659,-460.0,0.00019702,2]
[376049433,1753840239668,-1629.06,0.00019702,2]
[376049434,1753840239677,-460.0,0.00019702,2]
[376049435,1753840239687,-254.13554026,0.00019702,2]
[376049436,1753840239696,-460.0,0.00019702,2]
[376049437,1753840239706,-460.0,0.00019702,2]
[376049438,1753840239716,-920.55,0.00019702,2]
[376049439,1753840239725,-476.63989078,0.00019702,2]
[376049440,1753840239735,-460.0,0.00019702,2]
[376049441,1753840239745,-460.0,0.00019702,2]
[376049442,1753840239754,-460.0,0.00019702,2]
[376049443,1753840239763,-460.0,0.00019702,2]
[376049444,1753840239772,-460.0,0.00019702,2]
[376049445,1753840239782,-460.49,0.00019702,2]
[376049446,1753840239791,-4231.04,0.00019703,2]
[376049448,1753840239801,-460.0,0.00019704,2]
[376049449,1753840239810,-1935.82,0.00019704,2]
[376049451,1753840239819,-465.46904735,0.00019704,2]
[376049453,1753840239829,-6799.93676467,0.00019711,2]
[376049455,1753840239839,-501.16152977,0.00019711,2]
[376049457,1753840239849,-500.0,0.00019711,2]
[376049459,1753840239860,-500.0,0.00019711,2]
[376049460,1753840239869,-500.0,0.00019711,2]
[376049461,1753840239878,-500.9298894,0.00019711,2]
[376049462,1753840239888,-500.0,0.00019711,2]
[376049463,1753840239901,-500.42481592,0.00019711,2]
[376049464,1753840239910,-500.0,0.00019711,2]
[376049465,1753840239919,-320.28272182,0.00019711,2]
[376049466,1753840239929,-500.67139671,0.00019711,2]
[376049467,1753840239939,-500.37855538,0.00019711,2]
[376049468,1753840239949,-501.29507856,0.00019711,2]
[376049469,1753840239958,-501.2416567,0.00019711,2]
[376049470,1753840239967,-500.84356237,0.00019711,2]
[376049471,1753840239979,-226.36388906,0.00019711,2]
[376049472,1753840239989,-500.0,0.00019711,2]
[376049473,1753840239999,-500.0,0.00019711,2]
[376049475,1753840240009,-500.0,0.00019711,2]
[376049476,1753840240018,-501.100321,0.00019711,2]
[376049477,1753840240028,-500.0,0.00019712,2]
[376049478,1753840240037,-159.87437406,0.00019753,3]
[376049479,1753840240047,-2000.0,0.000198,4]
[376049480,1753840240056,-2000.0,0.000198,5]
[376049481,1753840240066,-2000.0,0.000198,6]
[376049482,1753840240075,-2000.0,0.000198,7]
[376049483,1753840240085,-891.2521942,0.00019835,2]
[376049484,1753840240094,-500.0,0.000199,2]
[376049485,1753840240104,-786.22449409,0.000199,2]
[376049486,1753840240114,-355.75903718,0.00019918,2]
[376049487,1753840240123,-500.0,0.00019935,2]
[376049488,1753840240133,-500.0,0.00019973,2]
[376049489,1753840240143,-500.76717165,0.00019973,2]
[376049490,1753840240152,-500.0,0.00019973,2]
[376049491,1753840240161,-500.0,0.00019973,2]
[376049492,1753840240170,-500.0,0.00019973,2]
[376049493,1753840240180,-500.0,0.00019973,2]
[376049494,1753840240190,-500.59873471,0.00019973,2]
[376049495,1753840240202,-500.0,0.00019973,2]
[376049496,1753840240214,-538.47456461,0.00019973,2]
[376049497,1753840240223,-159.78902216,0.00019973,2]
[376049498,1753840240233,-500.88243929,0.00019973,2]
[376049499,1753840240242,-460.0,0.00019974,2]
[376049500,1753840240251,-1939.76,0.00019974,2]
[376049501,1753840240261,-1120.65,0.00019974,2]
[376049502,1753840240271,-460.0,0.00019974,2]
[376049503,1753840240280,-818.13,0.00019974,2]
[376049504,1753840240290,-460.0,0.00019975,2]
[376049505,1753840240299,-460.0,0.00019975,2]
[376049506,1753840240309,-460.0,0.00019975,2]
[376049507,1753840240318,-460.0,0.00019975,2]
[376049508,1753840240328,-647.4,0.00019975,2]
[376049509,1753840240337,-460.0,0.00019975,2]
[376049510,1753840240346,-460.0,0.00019975,2]
[376049511,1753840240358,-521.4900261,0.00019975,2]
[376049512,1753840240367,-460.0,0.00019975,2]
[376049513,1753840240377,-460.0,0.00019975,2]
[376049514,1753840240386,-460.0,0.00019975,2]
[376049515,1753840240396,-460.0,0.00019975,2]
[376049516,1753840240405,-1294.82,0.00019975,2]
[376049517,1753840240414,-460.0,0.00019975,2]
[376049518,1753840240424,-460.0,0.00019975,2]
[376049519,1753840240433,-460.0,0.00019975,2]
[376049520,1753840240443,-460.0,0.00019975,2]
[376049521,1753840240452,-460.0,0.00019975,2]
[376049522,1753840240461,-1534.99,0.00019976,2]
[376049523,1753840240471,-737.07,0.00019976,2]
[376049524,1753840240480,-460.0,0.00019976,2]
[376049525,1753840240490,-678.08,0.00019976,2]
[376049526,1753840240499,-460.0,0.00019976,2]
[376049527,1753840240508,-1013.8,0.00019976,2]
[376049528,1753840240517,-460.0,0.00019976,2]
[376049529,1753840240526,-466.28,0.00019976,2]
[376049530,1753840240535,-779.48,0.00019976,2]
[376049531,1753840240545,-1980.43,0.00019976,2]
[376049532,1753840240554,-460.0,0.00019976,2]
[376049533,1753840240563,-460.0,0.00019976,2]
[376049534,1753840240573,-460.0,0.00019976,2]
[376049535,1753840240582,-484.35,0.00019976,2]
[376049536,1753840240591,-460.0,0.00019976,2]
[376049537,1753840240601,-1629.06,0.00019976,2]
[376049538,1753840240612,-460.0,0.00019976,2]
[376049539,1753840240622,-460.0,0.00019976,2]
[376049540,1753840240631,-460.0,0.00019976,2]
[376049541,1753840240640,-920.55,0.00019976,2]
[376049542,1753840240650,-460.0,0.00019976,2]
[376049543,1753840240659,-460.0,0.00019976,2]
[376049544,1753840240668,-460.0,0.00019976,2]
[376049545,1753840240677,-460.0,0.00019976,2]
[376049546,1753840240687,-460.0,0.00019976,2]
[376049547,1753840240696,-460.49,0.00019976,2]
[376049548,1753840240705,-4231.04,0.00019977,2]
[376049549,1753840240714,-460.0,0.00019978,2]
[376049550,1753840240723,-1935.82,0.00019978,2]